[Event "Titled Tuesday Blitz August 15 Late 2023"]
[White "Kramnik, Vladimir"]
[Black "Merino Garcia, Rafael II"]
[WhiteFideId "4101588"]
[BlackFideId "2209128"]
[WhiteElo "2957"]
[BlackElo "2471"]
[Result "0-1"]
[Round "1"]
[TimeControl "180+1"]
[Date "2023.08.15"]
[WhiteClock "0:00:00"]
[BlackClock "0:00:06"]
[Board "26"]

1. c4 {[%clk 0:03:00]}  Nf6 {[%clk 0:02:58]} 2. Nc3 {[%clk 0:03:00]}  e6 {[%clk 0:02:58]} 3. Nf3 {[%clk 0:02:57]}  d5 {[%clk 0:02:56]} 4. e3 {[%clk 0:02:57]}  Nbd7 {[%clk 0:02:48]} 5. b3 {[%clk 0:02:54]}  Be7 {[%clk 0:02:44]} 6. Bb2 {[%clk 0:02:53]}  O-O {[%clk 0:02:44]} 7. Qc2 {[%clk 0:02:53]}  b6 {[%clk 0:02:41]} 8. cxd5 {[%clk 0:02:45]}  exd5 {[%clk 0:02:40]} 9. Be2 {[%clk 0:02:38]}  Bb7 {[%clk 0:02:39]} 10. O-O {[%clk 0:02:38]}  Re8 {[%clk 0:02:26]} 11. Rad1 {[%clk 0:02:35]}  a6 {[%clk 0:02:24]} 12. Qb1 {[%clk 0:02:32]}  Bd6 {[%clk 0:02:23]} 13. d3 {[%clk 0:02:23]}  Qe7 {[%clk 0:02:15]} 14. Rfe1 {[%clk 0:02:21]}  Ne5 {[%clk 0:02:04]} 15. d4 {[%clk 0:02:02]}  Nxf3+ {[%clk 0:01:59]} 16. Bxf3 {[%clk 0:02:02]}  Ne4 {[%clk 0:01:59]} 17. Bxe4 {[%clk 0:01:51]}  dxe4 {[%clk 0:01:58]} 18. d5 {[%clk 0:01:51]}  Qe5 {[%clk 0:01:49]} 19. g3 {[%clk 0:01:49]}  Qh5 {[%clk 0:01:25]} 20. Rd2 {[%clk 0:01:42]}  Bb4 {[%clk 0:01:18]} 21. Qd1 {[%clk 0:01:37]}  Qh3 {[%clk 0:01:09]} 22. a3 {[%clk 0:01:25]}  Bd6 {[%clk 0:01:09]} 23. Ne2 {[%clk 0:01:17]}  Bc8 {[%clk 0:01:08]} 24. Kh1 {[%clk 0:00:35]}  Bg4 {[%clk 0:01:06]} 25. Ng1 {[%clk 0:00:35]}  Qh5 {[%clk 0:01:07]} 26. Qc2 {[%clk 0:00:32]}  b5 {[%clk 0:00:54]} 27. b4 {[%clk 0:00:31]}  Bf3+ {[%clk 0:00:51]} 28. Nxf3 {[%clk 0:00:29]}  exf3 {[%clk 0:00:51]} 29. Rd4 {[%clk 0:00:18]}  Qh3 {[%clk 0:00:40]} 30. Rg1 {[%clk 0:00:18]}  Qh5 {[%clk 0:00:20]} 31. Rh4 {[%clk 0:00:16]}  Qg6 {[%clk 0:00:15]} 32. Qxg6 {[%clk 0:00:16]}  hxg6 {[%clk 0:00:14]} 33. Bc3 {[%clk 0:00:12]}  Be5 {[%clk 0:00:13]} 34. Bxe5 {[%clk 0:00:11]}  Rxe5 {[%clk 0:00:13]} 35. Rd1 {[%clk 0:00:11]}  a5 {[%clk 0:00:13]} 36. Rf4 {[%clk 0:00:09]}  Rf5 {[%clk 0:00:12]} 37. Rxf5 {[%clk 0:00:08]}  gxf5 {[%clk 0:00:13]} 38. h3 {[%clk 0:00:07]}  g5 {[%clk 0:00:12]} 39. g4 {[%clk 0:00:06]}  fxg4 {[%clk 0:00:11]} 40. hxg4 {[%clk 0:00:06]}  axb4 {[%clk 0:00:12]} 41. axb4 {[%clk 0:00:06]}  Ra4 {[%clk 0:00:12]} 42. Rd4 {[%clk 0:00:05]}  Ra2 {[%clk 0:00:11]} 43. Kg1 {[%clk 0:00:05]}  Rc2 {[%clk 0:00:10]} 44. d6 {[%clk 0:00:04]}  cxd6 {[%clk 0:00:10]} 45. Rd5 {[%clk 0:00:03]}  Rc4 {[%clk 0:00:09]} 46. Rxg5+ {[%clk 0:00:02]}  Kf8 {[%clk 0:00:08]} 47. Rxb5 {[%clk 0:00:02]}  Rxg4+ {[%clk 0:00:08]} 48. Kf1 {[%clk 0:00:03]}  Rc4 {[%clk 0:00:07]} 49. Ke1 {[%clk 0:00:02]}  Rc2 {[%clk 0:00:07]} 50. Rf5 {[%clk 0:00:00]}  Rb2 {[%clk 0:00:06]} 0-1


[Site "https://www.chess.com"]

[Event "Titled Tuesday Blitz August 15 Late 2023"]
[White "Keymer, Vincent"]
[Black "Bobkov, Vadim"]
[WhiteFideId "12940690"]
[BlackFideId "34110876"]
[WhiteElo "2936"]
[BlackElo "2463"]
[Result "1-0"]
[Round "1"]
[TimeControl "180+1"]
[Date "2023.08.15"]
[WhiteClock "0:01:38"]
[BlackClock "0:00:02"]
[Board "30"]

1. a3 {[%clk 0:02:58]}  d5 {[%clk 0:02:46]} 2. Nf3 {[%clk 0:02:58]}  c5 {[%clk 0:02:39]} 3. b4 {[%clk 0:02:57]}  cxb4 {[%clk 0:02:34]} 4. axb4 {[%clk 0:02:57]}  e6 {[%clk 0:02:27]} 5. b5 {[%clk 0:02:57]}  Nf6 {[%clk 0:02:24]} 6. e3 {[%clk 0:02:57]}  Bd6 {[%clk 0:02:22]} 7. c4 {[%clk 0:02:56]}  O-O {[%clk 0:02:21]} 8. Bb2 {[%clk 0:02:55]}  a6 {[%clk 0:02:15]} 9. Be2 {[%clk 0:02:48]}  Nbd7 {[%clk 0:02:10]} 10. O-O {[%clk 0:02:43]}  Qc7 {[%clk 0:02:03]} 11. cxd5 {[%clk 0:02:41]}  Nxd5 {[%clk 0:02:02]} 12. d4 {[%clk 0:02:36]}  N7b6 {[%clk 0:01:56]} 13. Nbd2 {[%clk 0:02:36]}  axb5 {[%clk 0:01:54]} 14. Rxa8 {[%clk 0:02:34]}  Nxa8 {[%clk 0:01:54]} 15. Bxb5 {[%clk 0:02:32]}  Nc3 {[%clk 0:01:52]} 16. Bxc3 {[%clk 0:02:24]}  Qxc3 {[%clk 0:01:51]} 17. Ne4 {[%clk 0:02:23]}  Qc7 {[%clk 0:01:48]} 18. Qb1 {[%clk 0:02:19]}  Bd7 {[%clk 0:01:34]} 19. Rc1 {[%clk 0:02:18]}  Bc6 {[%clk 0:01:34]} 20. Bxc6 {[%clk 0:02:07]}  bxc6 {[%clk 0:01:32]} 21. Nxd6 {[%clk 0:02:03]}  Qxd6 {[%clk 0:01:31]} 22. Ng5 {[%clk 0:02:04]}  f5 {[%clk 0:01:27]} 23. Qa2 {[%clk 0:01:53]}  Nc7 {[%clk 0:01:25]} 24. Qc2 {[%clk 0:01:53]}  h6 {[%clk 0:01:13]} 25. Nf3 {[%clk 0:01:53]}  Ra8 {[%clk 0:00:55]} 26. h3 {[%clk 0:01:51]}  Ra6 {[%clk 0:00:55]} 27. Ne5 {[%clk 0:01:51]}  c5 {[%clk 0:00:48]} 28. Qxc5 {[%clk 0:01:46]}  Qxc5 {[%clk 0:00:45]} 29. Rxc5 {[%clk 0:01:47]}  Nd5 {[%clk 0:00:43]} 30. g4 {[%clk 0:01:48]}  fxg4 {[%clk 0:00:40]} 31. hxg4 {[%clk 0:01:48]}  Ra1+ {[%clk 0:00:40]} 32. Kg2 {[%clk 0:01:48]}  Ra2 {[%clk 0:00:40]} 33. Kf3 {[%clk 0:01:48]}  Kh7 {[%clk 0:00:39]} 34. Rc6 {[%clk 0:01:48]}  Nb4 {[%clk 0:00:26]} 35. Rxe6 {[%clk 0:01:46]}  Nc2 {[%clk 0:00:24]} 36. Re8 {[%clk 0:01:39]}  Ne1+ {[%clk 0:00:22]} 37. Kg3 {[%clk 0:01:39]}  Rb2 {[%clk 0:00:17]} 38. d5 {[%clk 0:01:39]}  Rd2 {[%clk 0:00:16]} 39. e4 {[%clk 0:01:39]}  Nd3 {[%clk 0:00:12]} 40. Nxd3 {[%clk 0:01:39]}  Rxd3+ {[%clk 0:00:12]} 41. Kf4 {[%clk 0:01:39]}  Rd2 {[%clk 0:00:11]} 42. f3 {[%clk 0:01:39]}  Kg6 {[%clk 0:00:11]} 43. Ke5 {[%clk 0:01:39]}  Kf7 {[%clk 0:00:02]} 44. Rb8 {[%clk 0:01:38]} 1-0


[Site "https://www.chess.com"]

[Event "Titled Tuesday Blitz August 15 Late 2023"]
[White "Villiers, Thomas"]
[Black "Dardha, Daniel"]
[WhiteFideId "427209"]
[BlackFideId "240990"]
[WhiteElo "2459"]
[BlackElo "2924"]
[Result "0-1"]
[Round "1"]
[TimeControl "180+1"]
[Date "2023.08.15"]
[WhiteClock "0:01:33"]
[BlackClock "0:01:33"]
[Board "33"]

1. c4 {[%clk 0:02:59]}  e6 {[%clk 0:02:56]} 2. Nf3 {[%clk 0:02:58]}  d5 {[%clk 0:02:56]} 3. g3 {[%clk 0:02:59]}  Nf6 {[%clk 0:02:55]} 4. Bg2 {[%clk 0:02:59]}  Nbd7 {[%clk 0:02:54]} 5. b3 {[%clk 0:02:56]}  Bd6 {[%clk 0:02:51]} 6. Bb2 {[%clk 0:02:56]}  O-O {[%clk 0:02:50]} 7. O-O {[%clk 0:02:56]}  c6 {[%clk 0:02:50]} 8. Nc3 {[%clk 0:02:52]}  a6 {[%clk 0:02:48]} 9. d3 {[%clk 0:02:47]}  b5 {[%clk 0:02:45]} 10. cxd5 {[%clk 0:02:46]}  cxd5 {[%clk 0:02:45]} 11. Rc1 {[%clk 0:02:41]}  Bb7 {[%clk 0:02:45]} 12. Qc2 {[%clk 0:02:40]}  Rc8 {[%clk 0:02:44]} 13. Qb1 {[%clk 0:02:39]}  e5 {[%clk 0:02:42]} 14. Nh4 {[%clk 0:02:36]}  Re8 {[%clk 0:02:36]} 15. Nf5 {[%clk 0:02:36]}  Bf8 {[%clk 0:02:36]} 16. e4 {[%clk 0:02:33]}  d4 {[%clk 0:02:32]} 17. Nd5 {[%clk 0:02:28]}  Nxd5 {[%clk 0:02:31]} 18. exd5 {[%clk 0:02:29]}  g6 {[%clk 0:02:29]} 19. Nh4 {[%clk 0:02:24]}  Nf6 {[%clk 0:02:27]} 20. Rxc8 {[%clk 0:02:22]}  Qxc8 {[%clk 0:02:28]} 21. Rc1 {[%clk 0:02:18]}  Qd7 {[%clk 0:02:28]} 22. a4 {[%clk 0:02:14]}  Nxd5 {[%clk 0:02:23]} 23. axb5 {[%clk 0:02:14]}  axb5 {[%clk 0:02:14]} 24. Nf3 {[%clk 0:02:14]}  Nb4 {[%clk 0:02:09]} 25. Nd2 {[%clk 0:02:13]}  Bxg2 {[%clk 0:02:08]} 26. Kxg2 {[%clk 0:02:14]}  Rc8 {[%clk 0:02:05]} 27. Ne4 {[%clk 0:02:11]}  Rxc1 {[%clk 0:01:58]} 28. Bxc1 {[%clk 0:02:00]}  Qc6 {[%clk 0:01:58]} 29. f3 {[%clk 0:01:58]}  f5 {[%clk 0:01:51]} 30. Nf2 {[%clk 0:01:57]}  Qc2 {[%clk 0:01:45]} 31. Qxc2 {[%clk 0:01:53]}  Nxc2 {[%clk 0:01:46]} 32. f4 {[%clk 0:01:47]}  exf4 {[%clk 0:01:42]} 33. Bxf4 {[%clk 0:01:47]}  Na1 {[%clk 0:01:43]} 34. Be5 {[%clk 0:01:41]}  Nxb3 {[%clk 0:01:42]} 35. g4 {[%clk 0:01:42]}  Kf7 {[%clk 0:01:36]} 36. gxf5 {[%clk 0:01:42]}  gxf5 {[%clk 0:01:37]} 37. Kf3 {[%clk 0:01:43]}  Ke6 {[%clk 0:01:36]} 38. Bh8 {[%clk 0:01:41]}  Bh6 {[%clk 0:01:34]} 39. Nh3 {[%clk 0:01:37]}  Kd5 {[%clk 0:01:34]} 40. Nf4+ {[%clk 0:01:37]}  Bxf4 {[%clk 0:01:33]} 41. Kxf4 {[%clk 0:01:38]}  Nc5 {[%clk 0:01:34]} 42. Kxf5 {[%clk 0:01:36]}  b4 {[%clk 0:01:35]} 43. Kg5 {[%clk 0:01:33]}  b3 {[%clk 0:01:34]} 44. Bxd4 {[%clk 0:01:33]}  Ne6+ {[%clk 0:01:31]} 45. Kh6 {[%clk 0:01:34]}  Nxd4 {[%clk 0:01:32]} 46. Kxh7 {[%clk 0:01:34]}  b2 {[%clk 0:01:33]} 47. h4 {[%clk 0:01:34]}  b1=Q {[%clk 0:01:33]} 48. h5 {[%clk 0:01:33]}  Qxd3+ {[%clk 0:01:33]} 0-1


[Site "https://www.chess.com"]

[Event "Titled Tuesday Blitz August 15 Late 2023"]
[White "Spichkin, Alexander"]
[Black "Eljanov, Pavel"]
[WhiteFideId "4144074"]
[BlackFideId "14102951"]
[WhiteElo "2455"]
[BlackElo "2903"]
[Result "0-1"]
[Round "1"]
[TimeControl "180+1"]
[Date "2023.08.15"]
[WhiteClock "0:01:29"]
[BlackClock "0:01:45"]
[Board "35"]

1. f4 {[%clk 0:02:58]}  d5 {[%clk 0:02:58]} 2. Nf3 {[%clk 0:02:58]}  g6 {[%clk 0:02:57]} 3. e3 {[%clk 0:02:56]}  Bg7 {[%clk 0:02:57]} 4. Be2 {[%clk 0:02:32]}  c5 {[%clk 0:02:57]} 5. O-O {[%clk 0:02:32]}  Nc6 {[%clk 0:02:57]} 6. d3 {[%clk 0:02:33]}  Nf6 {[%clk 0:02:53]} 7. Kh1 {[%clk 0:02:31]}  O-O {[%clk 0:02:53]} 8. a4 {[%clk 0:02:29]}  Re8 {[%clk 0:02:49]} 9. Ne5 {[%clk 0:02:25]}  Qc7 {[%clk 0:02:48]} 10. Nxc6 {[%clk 0:02:24]}  bxc6 {[%clk 0:02:48]} 11. Qe1 {[%clk 0:02:21]}  e5 {[%clk 0:02:43]} 12. Qh4 {[%clk 0:02:22]}  e4 {[%clk 0:02:34]} 13. g4 {[%clk 0:02:15]}  exd3 {[%clk 0:02:28]} 14. cxd3 {[%clk 0:02:15]}  c4 {[%clk 0:02:29]} 15. g5 {[%clk 0:02:10]}  cxd3 {[%clk 0:02:24]} 16. gxf6 {[%clk 0:02:08]}  dxe2 {[%clk 0:02:23]} 17. Re1 {[%clk 0:02:08]}  Bh8 {[%clk 0:02:19]} 18. Bd2 {[%clk 0:02:07]}  d4 {[%clk 0:02:14]} 19. Rxe2 {[%clk 0:01:59]}  Ba6 {[%clk 0:02:07]} 20. Re1 {[%clk 0:01:58]}  c5 {[%clk 0:01:51]} 21. Na3 {[%clk 0:01:48]}  Qc6+ {[%clk 0:01:49]} 22. Kg1 {[%clk 0:01:45]}  Bb7 {[%clk 0:01:49]} 23. Qg3 {[%clk 0:01:42]}  Bxf6 {[%clk 0:01:46]} 24. Nb5 {[%clk 0:01:34]}  Bh4 {[%clk 0:01:45]} 25. Qg4 {[%clk 0:01:29]}  Qh1# {[%clk 0:01:45]} 0-1


[Site "https://www.chess.com"]

[Event "Titled Tuesday Blitz August 15 Late 2023"]
[White "Olsson, William"]
[Black "Grigorjev, Iljya"]
[WhiteFideId "1741721"]
[BlackFideId "24159565"]
[WhiteElo "2454"]
[BlackElo "2894"]
[Result "0-1"]
[Round "1"]
[TimeControl "180+1"]
[Date "2023.08.15"]
[WhiteClock "0:00:39"]
[BlackClock "0:00:25"]
[Board "37"]

1. c4 {[%clk 0:03:00]}  Nf6 {[%clk 0:03:00]} 2. g3 {[%clk 0:03:00]}  d5 {[%clk 0:02:53]} 3. cxd5 {[%clk 0:03:01]}  Nxd5 {[%clk 0:02:53]} 4. Bg2 {[%clk 0:03:01]}  g6 {[%clk 0:02:54]} 5. d4 {[%clk 0:02:58]}  Nb6 {[%clk 0:02:53]} 6. Nc3 {[%clk 0:02:58]}  Bg7 {[%clk 0:02:54]} 7. Nf3 {[%clk 0:02:56]}  O-O {[%clk 0:02:55]} 8. O-O {[%clk 0:02:57]}  Nc6 {[%clk 0:02:55]} 9. d5 {[%clk 0:02:34]}  Na5 {[%clk 0:02:55]} 10. e4 {[%clk 0:02:33]}  c6 {[%clk 0:02:56]} 11. Bd2 {[%clk 0:02:22]}  cxd5 {[%clk 0:02:48]} 12. Nxd5 {[%clk 0:02:22]}  Nxd5 {[%clk 0:02:48]} 13. exd5 {[%clk 0:02:23]}  Qxd5 {[%clk 0:02:35]} 14. Bb4 {[%clk 0:02:02]}  Qxd1 {[%clk 0:02:32]} 15. Raxd1 {[%clk 0:02:03]}  Nc6 {[%clk 0:02:33]} 16. Bc3 {[%clk 0:02:00]}  Bxc3 {[%clk 0:02:33]} 17. bxc3 {[%clk 0:02:01]}  Be6 {[%clk 0:01:56]} 18. Nd4 {[%clk 0:01:58]}  Bxa2 {[%clk 0:01:46]} 19. Nxc6 {[%clk 0:01:52]}  bxc6 {[%clk 0:01:47]} 20. Bxc6 {[%clk 0:01:52]}  Rac8 {[%clk 0:01:47]} 21. Bd5 {[%clk 0:01:38]}  Bxd5 {[%clk 0:01:38]} 22. Rxd5 {[%clk 0:01:39]}  Rfd8 {[%clk 0:01:34]} 23. Rfd1 {[%clk 0:01:36]}  Rxd5 {[%clk 0:01:34]} 24. Rxd5 {[%clk 0:01:37]}  Rc7 {[%clk 0:01:24]} 25. Ra5 {[%clk 0:01:32]}  Kg7 {[%clk 0:01:23]} 26. h4 {[%clk 0:01:32]}  Kf6 {[%clk 0:01:19]} 27. Kg2 {[%clk 0:01:32]}  e5 {[%clk 0:01:19]} 28. c4 {[%clk 0:01:29]}  h5 {[%clk 0:01:06]} 29. Kf3 {[%clk 0:01:28]}  Kf5 {[%clk 0:01:06]} 30. Ke3 {[%clk 0:01:27]}  f6 {[%clk 0:01:02]} 31. Ra6 {[%clk 0:01:14]}  Rxc4 {[%clk 0:00:52]} 32. Rxa7 {[%clk 0:01:13]}  Rc3+ {[%clk 0:00:44]} 33. Ke2 {[%clk 0:01:12]}  Kg4 {[%clk 0:00:29]} 34. Rf7 {[%clk 0:01:07]}  Rc6 {[%clk 0:00:27]} 35. Kf1 {[%clk 0:00:57]}  Kf3 {[%clk 0:00:27]} 36. Kg1 {[%clk 0:00:52]}  f5 {[%clk 0:00:28]} 37. Rg7 {[%clk 0:00:48]}  e4 {[%clk 0:00:25]} 38. Rg8 {[%clk 0:00:45]}  Rc1+ {[%clk 0:00:25]} 39. Kh2 {[%clk 0:00:45]}  Kxf2 {[%clk 0:00:26]} 40. Rxg6 {[%clk 0:00:45]}  e3 {[%clk 0:00:27]} 41. Rf6 {[%clk 0:00:45]}  Rc5 {[%clk 0:00:26]} 42. g4 {[%clk 0:00:43]}  e2 {[%clk 0:00:25]} 43. Re6 {[%clk 0:00:39]}  e1=Q {[%clk 0:00:25]} 0-1


[Site "https://www.chess.com"]

[Event "Titled Tuesday Blitz August 15 Late 2023"]
[White "Moskalenko, Alexander"]
[Black "Ankerst, Mihael"]
[WhiteFideId "4155351"]
[BlackFideId "14602369"]
[WhiteElo "2893"]
[BlackElo "2453"]
[Result "1/2-1/2"]
[Round "1"]
[TimeControl "180+1"]
[Date "2023.08.15"]
[WhiteClock "0:01:07"]
[BlackClock "0:00:06"]
[Board "38"]

1. Nf3 {[%clk 0:02:56]}  Nf6 {[%clk 0:02:59]} 2. g3 {[%clk 0:02:57]}  g6 {[%clk 0:02:59]} 3. b3 {[%clk 0:02:57]}  Bg7 {[%clk 0:02:59]} 4. Bb2 {[%clk 0:02:58]}  a5 {[%clk 0:02:59]} 5. a4 {[%clk 0:02:56]}  d5 {[%clk 0:02:57]} 6. d4 {[%clk 0:02:56]}  O-O {[%clk 0:02:56]} 7. Bg2 {[%clk 0:02:56]}  Bf5 {[%clk 0:02:49]} 8. O-O {[%clk 0:02:57]}  c6 {[%clk 0:02:49]} 9. c4 {[%clk 0:02:53]}  Na6 {[%clk 0:02:49]} 10. Nc3 {[%clk 0:02:52]}  Ne4 {[%clk 0:02:47]} 11. Nh4 {[%clk 0:02:49]}  Nxc3 {[%clk 0:02:47]} 12. Bxc3 {[%clk 0:02:50]}  Be4 {[%clk 0:02:47]} 13. f3 {[%clk 0:02:49]}  Bf5 {[%clk 0:02:44]} 14. Nxf5 {[%clk 0:02:49]}  gxf5 {[%clk 0:02:45]} 15. Qc2 {[%clk 0:02:30]}  dxc4 {[%clk 0:02:37]} 16. Rad1 {[%clk 0:02:31]}  cxb3 {[%clk 0:02:18]} 17. Qxf5 {[%clk 0:02:29]}  c5 {[%clk 0:02:17]} 18. dxc5 {[%clk 0:02:27]}  Qc8 {[%clk 0:02:16]} 19. Qg5 {[%clk 0:02:24]}  Qxc5+ {[%clk 0:02:13]} 20. Qxc5 {[%clk 0:02:23]}  Nxc5 {[%clk 0:02:13]} 21. Bxg7 {[%clk 0:02:24]}  Kxg7 {[%clk 0:02:14]} 22. Rb1 {[%clk 0:02:22]}  b5 {[%clk 0:02:03]} 23. axb5 {[%clk 0:02:20]}  a4 {[%clk 0:02:03]} 24. Rfc1 {[%clk 0:02:20]}  a3 {[%clk 0:01:55]} 25. Rxc5 {[%clk 0:02:17]}  a2 {[%clk 0:01:56]} 26. Rcc1 {[%clk 0:02:18]}  Rfb8 {[%clk 0:01:44]} 27. Rxb3 {[%clk 0:02:11]}  a1=Q {[%clk 0:01:44]} 28. Rxa1 {[%clk 0:02:12]}  Rxa1+ {[%clk 0:01:44]} 29. Kf2 {[%clk 0:02:12]}  Rb6 {[%clk 0:01:30]} 30. f4 {[%clk 0:02:13]}  Rc1 {[%clk 0:01:31]} 31. Be4 {[%clk 0:02:10]}  e6 {[%clk 0:01:27]} 32. Bd3 {[%clk 0:02:09]}  f5 {[%clk 0:01:28]} 33. Ra3 {[%clk 0:02:08]}  Rc7 {[%clk 0:01:26]} 34. Ra8 {[%clk 0:02:07]}  Rcb7 {[%clk 0:01:23]} 35. h3 {[%clk 0:02:06]}  Rc7 {[%clk 0:01:22]} 36. g4 {[%clk 0:02:05]}  fxg4 {[%clk 0:01:16]} 37. hxg4 {[%clk 0:02:06]}  h6 {[%clk 0:01:17]} 38. Kg3 {[%clk 0:02:01]}  Rd7 {[%clk 0:01:17]} 39. Rc8 {[%clk 0:02:00]}  Rdb7 {[%clk 0:01:03]} 40. Kf3 {[%clk 0:02:00]}  Rd7 {[%clk 0:01:03]} 41. Ke4 {[%clk 0:01:58]}  Kf6 {[%clk 0:01:02]} 42. Rh8 {[%clk 0:01:54]}  Kg7 {[%clk 0:01:02]} 43. Rc8 {[%clk 0:01:55]}  Kf6 {[%clk 0:01:02]} 44. Ke3 {[%clk 0:01:55]}  Rd5 {[%clk 0:01:01]} 45. Rh8 {[%clk 0:01:51]}  Kg7 {[%clk 0:01:01]} 46. Rh7+ {[%clk 0:01:52]}  Kf8 {[%clk 0:00:51]} 47. Bc4 {[%clk 0:01:48]}  Rc5 {[%clk 0:00:45]} 48. Kd4 {[%clk 0:01:48]}  Rcxb5 {[%clk 0:00:15]} 49. Bxb5 {[%clk 0:01:47]}  Rxb5 {[%clk 0:00:16]} 50. Rxh6 {[%clk 0:01:47]}  e5+ {[%clk 0:00:16]} 51. fxe5 {[%clk 0:01:46]}  Rb4+ {[%clk 0:00:17]} 52. Kd5 {[%clk 0:01:46]}  Rxg4 {[%clk 0:00:17]} 53. Kd6 {[%clk 0:01:33]}  Ra4 {[%clk 0:00:16]} 54. Rh8+ {[%clk 0:01:31]}  Kg7 {[%clk 0:00:17]} 55. Rc8 {[%clk 0:01:30]}  Ra6+ {[%clk 0:00:14]} 56. Rc6 {[%clk 0:01:29]}  Ra2 {[%clk 0:00:14]} 57. e4 {[%clk 0:01:28]}  Ra4 {[%clk 0:00:14]} 58. Kd5 {[%clk 0:01:28]}  Ra5+ {[%clk 0:00:14]} 59. Ke6 {[%clk 0:01:29]}  Kg6 {[%clk 0:00:10]} 60. Kd7+ {[%clk 0:01:26]}  Kg7 {[%clk 0:00:07]} 61. e6 {[%clk 0:01:26]}  Re5 {[%clk 0:00:05]} 62. Rc7 {[%clk 0:01:17]}  Kf6 {[%clk 0:00:05]} 63. Rc6 {[%clk 0:01:15]}  Rxe4 {[%clk 0:00:06]} 64. Rd6 {[%clk 0:01:12]}  Re3 {[%clk 0:00:05]} 65. Ra6 {[%clk 0:01:11]}  Re4 {[%clk 0:00:05]} 66. Ra2 {[%clk 0:01:06]}  Rd4+ {[%clk 0:00:04]} 67. Kc6 {[%clk 0:01:05]}  Kxe6 {[%clk 0:00:05]} 68. Re2+ {[%clk 0:01:06]}  Kf5 {[%clk 0:00:06]} 69. Kc5 {[%clk 0:01:07]}  Re4 {[%clk 0:00:06]} 70. Rxe4 {[%clk 0:01:07]}  Kxe4 {[%clk 0:00:06]} 1/2-1/2


[Site "https://www.chess.com"]

[Event "Titled Tuesday Blitz August 15 Late 2023"]
[White "Kubatko, Ivan"]
[Black "Cordova, Emilio"]
[WhiteFideId "24111473"]
[BlackFideId "3801497"]
[WhiteElo "2449"]
[BlackElo "2869"]
[Result "0-1"]
[Round "1"]
[TimeControl "180+1"]
[Date "2023.08.15"]
[WhiteClock "0:00:10"]
[BlackClock "0:01:47"]
[Board "43"]

1. e4 {[%clk 0:03:00]}  c5 {[%clk 0:02:59]} 2. c3 {[%clk 0:03:00]}  e6 {[%clk 0:02:59]} 3. d4 {[%clk 0:03:00]}  d5 {[%clk 0:02:59]} 4. exd5 {[%clk 0:03:01]}  exd5 {[%clk 0:03:00]} 5. Nf3 {[%clk 0:03:01]}  Nc6 {[%clk 0:03:00]} 6. Be3 {[%clk 0:02:59]}  cxd4 {[%clk 0:02:59]} 7. Nxd4 {[%clk 0:02:59]}  Bd6 {[%clk 0:02:59]} 8. Be2 {[%clk 0:02:57]}  Nf6 {[%clk 0:02:59]} 9. O-O {[%clk 0:02:57]}  O-O {[%clk 0:02:59]} 10. Nd2 {[%clk 0:02:56]}  a6 {[%clk 0:02:58]} 11. Nxc6 {[%clk 0:02:38]}  bxc6 {[%clk 0:02:58]} 12. c4 {[%clk 0:02:35]}  Re8 {[%clk 0:02:51]} 13. cxd5 {[%clk 0:02:34]}  Nxd5 {[%clk 0:02:47]} 14. Nc4 {[%clk 0:02:01]}  Bc7 {[%clk 0:02:47]} 15. Bc5 {[%clk 0:01:39]}  a5 {[%clk 0:02:38]} 16. Re1 {[%clk 0:01:37]}  Ba6 {[%clk 0:02:35]} 17. Bf1 {[%clk 0:01:37]}  Rxe1 {[%clk 0:02:32]} 18. Qxe1 {[%clk 0:01:38]}  Bxc4 {[%clk 0:02:29]} 19. Bxc4 {[%clk 0:01:33]}  Qh4 {[%clk 0:02:29]} 20. Bxd5 {[%clk 0:01:13]}  Qxh2+ {[%clk 0:02:28]} 21. Kf1 {[%clk 0:01:13]}  cxd5 {[%clk 0:02:24]} 22. Rd1 {[%clk 0:00:25]}  Qh1+ {[%clk 0:02:11]} 23. Ke2 {[%clk 0:00:25]}  Qxg2 {[%clk 0:02:11]} 24. Kd3 {[%clk 0:00:17]}  Qg6+ {[%clk 0:02:09]} 25. Kd4 {[%clk 0:00:14]}  h5 {[%clk 0:01:55]} 26. Qe7 {[%clk 0:00:14]}  Qg4+ {[%clk 0:01:52]} 27. Kd3 {[%clk 0:00:10]}  Qxd1+ {[%clk 0:01:47]} 0-1


[Site "https://www.chess.com"]

[Event "Titled Tuesday Blitz August 15 Late 2023"]
[White "Delorme, Axel"]
[Black "Kovalev, Vladislav"]
[WhiteFideId "632023"]
[BlackFideId "13504398"]
[WhiteElo "2445"]
[BlackElo "2861"]
[Result "0-1"]
[Round "1"]
[TimeControl "180+1"]
[Date "2023.08.15"]
[WhiteClock "0:00:50"]
[BlackClock "0:02:38"]
[Board "45"]

1. e4 {[%clk 0:03:00]}  e5 {[%clk 0:03:00]} 2. Nf3 {[%clk 0:03:00]}  Nc6 {[%clk 0:03:00]} 3. Bb5 {[%clk 0:03:00]}  a6 {[%clk 0:03:01]} 4. Ba4 {[%clk 0:03:01]}  Nf6 {[%clk 0:03:00]} 5. O-O {[%clk 0:03:02]}  Be7 {[%clk 0:03:01]} 6. Re1 {[%clk 0:03:02]}  b5 {[%clk 0:03:01]} 7. Bb3 {[%clk 0:03:02]}  d6 {[%clk 0:03:02]} 8. c3 {[%clk 0:03:02]}  O-O {[%clk 0:03:02]} 9. h3 {[%clk 0:03:03]}  Be6 {[%clk 0:03:03]} 10. Bxe6 {[%clk 0:02:52]}  fxe6 {[%clk 0:03:04]} 11. Qb3 {[%clk 0:02:50]}  d5 {[%clk 0:02:48]} 12. exd5 {[%clk 0:02:48]}  Nxd5 {[%clk 0:02:46]} 13. Nxe5 {[%clk 0:02:39]}  Nxe5 {[%clk 0:02:47]} 14. Rxe5 {[%clk 0:02:39]}  Bd6 {[%clk 0:02:47]} 15. Rxe6 {[%clk 0:02:29]}  Qh4 {[%clk 0:02:47]} 16. Re2 {[%clk 0:02:09]}  c6 {[%clk 0:02:47]} 17. d4 {[%clk 0:01:37]}  Rae8 {[%clk 0:02:45]} 18. Be3 {[%clk 0:00:50]}  Rxe3 {[%clk 0:02:38]} 0-1


[Site "https://www.chess.com"]